[Event "*** MasterClass Titled Tuesday Blitz"]
[Site "Chess.com"]
[Date "2017.12.12"]
[Round "3"]
[White "GMAkobianSTL"]
[Black "ST-Sandavagur"]
[Result "1-0"]
[WhiteElo "2664"]
[BlackElo "2497"]
[TimeControl "180+2"]
[EndTime "13:35:50 PST"]
[Termination "GMAkobianSTL won by resignation"]

1. d4 {[%clk 0:02:56.5]} 1... Nf6 {[%clk 0:02:58.5]} 2. c4 {[%clk 0:02:56.7]}
2... g6 {[%clk 0:02:34.5]} 3. Nc3 {[%clk 0:02:56.9]} 3... Bg7 {[%clk 0:02:34.3]}
4. Nf3 {[%clk 0:02:57.2]} 4... O-O {[%clk 0:02:35.3]} 5. Bg5 {[%clk 0:02:57.5]}
5... d6 {[%clk 0:02:36.9]} 6. e3 {[%clk 0:02:58.1]} 6... Nbd7 {[%clk 0:02:34.4]}
7. Be2 {[%clk 0:02:58.5]} 7... h6 {[%clk 0:02:34.4]} 8. Bh4 {[%clk 0:02:59]}
8... c6 {[%clk 0:02:36.1]} 9. Qc2 {[%clk 0:02:59.5]} 9... Qc7 {[%clk 0:02:31.5]}
10. O-O {[%clk 0:02:59.8]} 10... e5 {[%clk 0:02:32.7]} 11. Rfd1 {[%clk
0:03:00.4]} 11... Re8 {[%clk 0:02:33.2]} 12. Rac1 {[%clk 0:02:59.4]} 12... a5
{[%clk 0:02:34]} 13. a3 {[%clk 0:02:59.6]} 13... Nf8 {[%clk 0:02:30.5]} 14. dxe5
{[%clk 0:02:51.5]} 14... dxe5 {[%clk 0:02:32.4]} 15. b4 {[%clk 0:02:52.1]} 15...
axb4 {[%clk 0:02:32.4]} 16. axb4 {[%clk 0:02:52.9]} 16... Bf5 {[%clk 0:02:33.2]}
17. Qb3 {[%clk 0:02:52.6]} 17... Ne4 {[%clk 0:02:27]} 18. Nxe4 {[%clk
0:02:50.9]} 18... Bxe4 {[%clk 0:02:28.9]} 19. Nd2 {[%clk 0:02:49.7]} 19... Bf5
{[%clk 0:02:29]} 20. c5 {[%clk 0:02:50.5]} 20... Be6 {[%clk 0:02:28.7]} 21. Bc4
{[%clk 0:02:49.7]} 21... b5 {[%clk 0:02:13.6]} 22. Bxe6 {[%clk 0:02:43.5]} 22...
Nxe6 {[%clk 0:02:15.5]} 23. Ne4 {[%clk 0:02:43.4]} 23... f5 {[%clk 0:02:15.3]}
24. Nd6 {[%clk 0:02:42.7]} 24... g5 {[%clk 0:02:06.8]} 25. Bg3 {[%clk
0:02:30.9]} 25... f4 {[%clk 0:02:08.7]} 26. Nxe8 {[%clk 0:02:30.2]} 26... Rxe8
{[%clk 0:02:10.6]} 27. Rd6 {[%clk 0:02:30.7]} 27... Qf7 {[%clk 0:01:51.8]} 28.
Rxc6 {[%clk 0:02:29]} 28... fxg3 {[%clk 0:01:53.2]} 29. hxg3 {[%clk 0:02:29.3]}
29... e4 {[%clk 0:01:27.9]} 30. Rd1 {[%clk 0:02:21.9]} 30... Nd8 {[%clk
0:01:23.1]} 31. Qxf7+ {[%clk 0:02:18.9]} 31... Nxf7 {[%clk 0:01:25]} 32. Rb6
{[%clk 0:02:18.6]} 32... Ne5 {[%clk 0:01:26.5]} 33. Rxb5 {[%clk 0:02:03.5]}
33... Nd3 {[%clk 0:01:27.9]} 34. Rb7 {[%clk 0:01:57.8]} 34... Bc3 {[%clk
0:01:19]} 35. c6 {[%clk 0:01:53.2]} 35... Rc8 {[%clk 0:01:13.5]} 36. b5 {[%clk
0:01:49.5]} 36... Be1 {[%clk 0:01:07.2]} 37. Kf1 {[%clk 0:01:36.5]} 37... Ba5
{[%clk 0:00:51.8]} 38. Ra1 {[%clk 0:01:29.6]} 38... Bc3 {[%clk 0:00:33.8]} 39.
Ra3 {[%clk 0:01:29]} 39... Be5 {[%clk 0:00:34.6]} 40. f4 {[%clk 0:01:28.5]}
40... Bd6 {[%clk 0:00:31.8]} 41. Ra2 {[%clk 0:01:22.4]} 41... Kf8 {[%clk
0:00:26.4]} 42. Rba7 {[%clk 0:01:17.7]} 42... Nb4 {[%clk 0:00:18.5]} 43. Ra8
{[%clk 0:01:16.8]} 43... Rxa8 {[%clk 0:00:17]} 44. Rxa8+ {[%clk 0:01:16]} 44...
Ke7 {[%clk 0:00:18.9]} 45. Rh8 {[%clk 0:01:14.1]} 45... Bc7 {[%clk 0:00:17]} 46.
Rxh6 {[%clk 0:01:12.8]} 46... gxf4 {[%clk 0:00:17.5]} 47. gxf4 {[%clk
0:01:13.4]} 47... Nc2 {[%clk 0:00:18.5]} 48. Rh7+ {[%clk 0:01:12]} 48... Kd8
{[%clk 0:00:19.9]} 49. Ke2 {[%clk 0:01:11.5]} 49... Na3 {[%clk 0:00:21.1]} 50.
Rd7+ {[%clk 0:01:08.4]} 50... Kc8 {[%clk 0:00:22.6]} 51. Rd5 {[%clk 0:01:08.9]}
51... Kb8 {[%clk 0:00:24.5]} 52. g4 {[%clk 0:01:08.9]} 52... Ka7 {[%clk
0:00:24.7]} 53. g5 {[%clk 0:01:09.5]} 53... Kb6 {[%clk 0:00:25.4]} 54. g6 {[%clk
0:01:10.1]} 54... Nxb5 {[%clk 0:00:27.1]} 55. Rxb5+ {[%clk 0:01:10.1]} 55...
Kxb5 {[%clk 0:00:29]} 56. g7 {[%clk 0:01:11.2]} 1-0

[Event "*** MasterClass Titled Tuesday Blitz"]
[Site "Chess.com"]
[Date "2017.12.12"]
[Round "3"]
[White "SharkAnto55"]
[Black "GMMarcinDziuba"]
[Result "0-1"]
[WhiteElo "2359"]
[BlackElo "2528"]
[TimeControl "180+2"]
[EndTime "13:35:50 PST"]
[Termination "GMMarcinDziuba won by resignation"]

1. d4 {[%clk 0:03:00.6]} 1... d5 {[%clk 0:02:59.9]} 2. c4 {[%clk 0:03:00.9]}
2... e6 {[%clk 0:03:01]} 3. Nf3 {[%clk 0:03:01.9]} 3... Nf6 {[%clk 0:03:01.1]}
4. g3 {[%clk 0:03:03.3]} 4... Bb4+ {[%clk 0:03:01.4]} 5. Bd2 {[%clk 0:03:03.8]}
5... Be7 {[%clk 0:03:03.3]} 6. Bg2 {[%clk 0:03:04.5]} 6... Nbd7 {[%clk
0:03:03.8]} 7. O-O {[%clk 0:03:02.7]} 7... c6 {[%clk 0:03:05.2]} 8. Qc2 {[%clk
0:03:02.2]} 8... O-O {[%clk 0:03:06.3]} 9. Bf4 {[%clk 0:03:02.6]} 9... b6 {[%clk
0:02:36.2]} 10. cxd5 {[%clk 0:02:45]} 10... cxd5 {[%clk 0:02:35.1]} 11. Bc7
{[%clk 0:02:46.3]} 11... Qe8 {[%clk 0:02:35.9]} 12. Rc1 {[%clk 0:02:40.5]} 12...
Bb7 {[%clk 0:02:29.4]} 13. Nbd2 {[%clk 0:02:36.7]} 13... Rc8 {[%clk 0:02:26.7]}
14. Qd3 {[%clk 0:02:30.1]} 14... Nb8 {[%clk 0:02:25]} 15. e3 {[%clk 0:02:06.2]}
15... Na6 {[%clk 0:01:59.3]} 16. Bf4 {[%clk 0:01:55.2]} 16... Qa4 {[%clk
0:01:59.4]} 17. Qb3 {[%clk 0:01:46.4]} 17... Qxb3 {[%clk 0:01:58.1]} 18. Nxb3
{[%clk 0:01:48.3]} 18... Nb4 {[%clk 0:01:58]} 19. a3 {[%clk 0:00:41.8]} 19...
Nd3 {[%clk 0:01:55.8]} 20. Rcb1 {[%clk 0:00:43.2]} 20... Ne4 {[%clk 0:01:40.7]}
21. Nbd2 {[%clk 0:00:29.6]} 21... Ndxf2 {[%clk 0:01:18.5]} 22. Nxe4 {[%clk
0:00:08.7]} 22... Nxe4 {[%clk 0:01:20.4]} 23. h4 {[%clk 0:00:10.5]} 23... h6
{[%clk 0:01:10.8]} 24. h5 {[%clk 0:00:10.1]} 24... Rc2 {[%clk 0:01:09.3]} 25.
Ne1 {[%clk 0:00:08.4]} 25... Rc6 {[%clk 0:01:01.5]} 26. Rc1 {[%clk 0:00:07.9]}
26... Rfc8 {[%clk 0:01:02.5]} 27. Nd3 {[%clk 0:00:09.1]} 27... Ba6 {[%clk
0:01:02.2]} 28. Rxc6 {[%clk 0:00:09]} 28... Rxc6 {[%clk 0:01:04.1]} 29. Nb4
{[%clk 0:00:10]} 29... Bxb4 {[%clk 0:01:01.8]} 30. axb4 {[%clk 0:00:11.9]} 30...
Be2 {[%clk 0:01:01.1]} 31. Rxa7 {[%clk 0:00:11.1]} 31... Bxh5 {[%clk 0:01:01.6]}
32. Rb7 {[%clk 0:00:11.2]} 32... Bg6 {[%clk 0:00:52]} 33. Bc7 {[%clk 0:00:09.8]}
33... Rc1+ {[%clk 0:00:48.4]} 34. Kh2 {[%clk 0:00:10.8]} 34... Nf2 {[%clk
0:00:47.5]} 35. Bf3 {[%clk 0:00:09.6]} 35... Be4 {[%clk 0:00:38.7]} 36. Bxe4
{[%clk 0:00:09.9]} 36... dxe4 {[%clk 0:00:40.6]} 37. Bxb6 {[%clk 0:00:11]} 37...
Ng4+ {[%clk 0:00:40.3]} 38. Kh3 {[%clk 0:00:12.2]} 38... Nxe3 {[%clk 0:00:41]}
39. g4 {[%clk 0:00:13.7]} 39... Nd5 {[%clk 0:00:39]} 40. Bc5 {[%clk 0:00:14.1]}
40... e3 {[%clk 0:00:40.3]} 41. b5 {[%clk 0:00:10.5]} 41... e2 {[%clk
0:00:41.5]} 42. Rb8+ {[%clk 0:00:12.4]} 42... Kh7 {[%clk 0:00:42.2]} 43. Rh8+
{[%clk 0:00:13.4]} 43... Kxh8 {[%clk 0:00:42.8]} 0-1

[Event "*** MasterClass Titled Tuesday Blitz"]
[Site "Chess.com"]
[Date "2017.12.12"]
[Round "3"]
[White "TomsKantans"]
[Black "OparinGrigoriy"]
[Result "1-0"]
[WhiteElo "2442"]
[BlackElo "2671"]
[TimeControl "180+2"]
[EndTime "13:35:58 PST"]
[Termination "TomsKantans won by resignation"]

1. e4 {[%clk 0:02:36.4]} 1... c5 {[%clk 0:02:56.9]} 2. Nf3 {[%clk 0:02:37.2]}
2... Nc6 {[%clk 0:02:58.4]} 3. Bb5 {[%clk 0:02:37.7]} 3... g6 {[%clk 0:02:59.9]}
4. c3 {[%clk 0:02:37.4]} 4... Bg7 {[%clk 0:02:59.3]} 5. d4 {[%clk 0:02:38.4]}
5... Qb6 {[%clk 0:02:57.7]} 6. Bxc6 {[%clk 0:02:35.4]} 6... dxc6 {[%clk
0:02:56]} 7. h3 {[%clk 0:02:36.2]} 7... Nf6 {[%clk 0:02:54.5]} 8. Qe2 {[%clk
0:02:32.1]} 8... O-O {[%clk 0:02:52.3]} 9. O-O {[%clk 0:02:32.7]} 9... Rd8
{[%clk 0:02:49.5]} 10. Rd1 {[%clk 0:02:17.3]} 10... Be6 {[%clk 0:02:47.4]} 11.
Nbd2 {[%clk 0:01:57.6]} 11... cxd4 {[%clk 0:02:41.6]} 12. cxd4 {[%clk
0:01:59.2]} 12... h6 {[%clk 0:02:42.5]} 13. Nf1 {[%clk 0:01:55.9]} 13... Rac8
{[%clk 0:02:37.6]} 14. Ng3 {[%clk 0:01:54.5]} 14... a6 {[%clk 0:02:25.5]} 15.
Be3 {[%clk 0:01:55.2]} 15... Qb5 {[%clk 0:02:26.8]} 16. Qc2 {[%clk 0:01:45.5]}
16... Qc4 {[%clk 0:02:16.6]} 17. Qd2 {[%clk 0:01:33.5]} 17... Qb5 {[%clk
0:01:54.9]} 18. Bxh6 {[%clk 0:01:28.3]} 18... Nh5 {[%clk 0:01:34.1]} 19. Nxh5
{[%clk 0:01:23.2]} 19... Qxh5 {[%clk 0:01:36]} 20. Bxg7 {[%clk 0:01:24.1]} 20...
Kxg7 {[%clk 0:01:37.9]} 21. Qf4 {[%clk 0:01:17.8]} 21... f6 {[%clk 0:01:36.5]}
22. a3 {[%clk 0:01:08.5]} 22... Qb5 {[%clk 0:01:28.6]} 23. Rd2 {[%clk
0:01:05.5]} 23... g5 {[%clk 0:01:25.2]} 24. Qe3 {[%clk 0:01:02.6]} 24... Bf7
{[%clk 0:01:25.5]} 25. Re1 {[%clk 0:01:02.1]} 25... Rc7 {[%clk 0:01:24.7]} 26.
e5 {[%clk 0:00:53.2]} 26... Bg6 {[%clk 0:01:26]} 27. h4 {[%clk 0:00:46.3]} 27...
g4 {[%clk 0:01:27.1]} 28. Nh2 {[%clk 0:00:44.4]} 28... fxe5 {[%clk 0:01:28.4]}
29. Qg5 {[%clk 0:00:37.6]} 29... e4 {[%clk 0:01:12.2]} 30. Qxg4 {[%clk
0:00:33.8]} 30... Qf5 {[%clk 0:01:08.9]} 31. Qg3 {[%clk 0:00:18.9]} 31... Rcd7
{[%clk 0:01:08.9]} 32. Ng4 {[%clk 0:00:20.1]} 32... c5 {[%clk 0:00:56.8]} 33.
Ne3 {[%clk 0:00:19]} 33... Qh5 {[%clk 0:00:56.5]} 34. d5 {[%clk 0:00:19.7]}
34... e6 {[%clk 0:00:52]} 35. Rc1 {[%clk 0:00:19.1]} 35... b6 {[%clk 0:00:50.4]}
36. b4 {[%clk 0:00:20.3]} 36... exd5 {[%clk 0:00:48.1]} 37. bxc5 {[%clk
0:00:21.6]} 37... d4 {[%clk 0:00:49.3]} 38. c6 {[%clk 0:00:22.9]} 38... Qa5
{[%clk 0:00:22.1]} 39. cxd7 {[%clk 0:00:18.2]} 39... Qxd2 {[%clk 0:00:22.8]} 40.
Qe5+ {[%clk 0:00:19.3]} 40... Kh7 {[%clk 0:00:18.5]} 41. Qe7+ {[%clk 0:00:19.1]}
41... Kh6 {[%clk 0:00:19.3]} 42. Qxd8 {[%clk 0:00:18.1]} 42... Qxc1+ {[%clk
0:00:20.1]} 43. Kh2 {[%clk 0:00:19.7]} 43... dxe3 {[%clk 0:00:19.5]} 44. Qg5+
{[%clk 0:00:20.6]} 44... Kh7 {[%clk 0:00:20.3]} 45. d8=Q {[%clk 0:00:22.5]} 1-0

[Event "*** MasterClass Titled Tuesday Blitz"]
[Site "Chess.com"]
[Date "2017.12.12"]
[Round "3"]
[White "dawtonlms"]
[Black "aa175"]
[Result "1-0"]
[WhiteElo "2259"]
[BlackElo "1890"]
[TimeControl "180+2"]
[EndTime "13:36:03 PST"]
[Termination "dawtonlms won on time"]

1. e4 {[%clk 0:03:01.9]} 1... e5 {[%clk 0:02:53.1]} 2. Nf3 {[%clk 0:03:02.4]}
2... Nc6 {[%clk 0:02:48.5]} 3. Bb5 {[%clk 0:03:01.2]} 3... Nf6 {[%clk
0:02:43.3]} 4. Bxc6 {[%clk 0:03:01.9]} 4... dxc6 {[%clk 0:02:36.3]} 5. d3 {[%clk
0:03:03.3]} 5... Bc5 {[%clk 0:02:31.5]} 6. Nbd2 {[%clk 0:03:02.5]} 6... O-O
{[%clk 0:02:27.7]} 7. Nc4 {[%clk 0:03:02.9]} 7... Nd7 {[%clk 0:02:24.5]} 8. Qe2
{[%clk 0:03:02.5]} 8... Re8 {[%clk 0:02:20.3]} 9. Bd2 {[%clk 0:02:57.9]} 9...
Bd6 {[%clk 0:02:15.8]} 10. g4 {[%clk 0:02:53.4]} 10... Nf8 {[%clk 0:02:05.9]}
11. h3 {[%clk 0:02:20.1]} 11... b5 {[%clk 0:02:02.6]} 12. Ne3 {[%clk 0:02:19.8]}
12... Ne6 {[%clk 0:02:02.6]} 13. Nf5 {[%clk 0:02:20.3]} 13... c5 {[%clk
0:01:51.4]} 14. g5 {[%clk 0:02:15.7]} 14... Nf4 {[%clk 0:01:33]} 15. Bxf4 {[%clk
0:02:11.1]} 15... Bxf5 {[%clk 0:01:32.8]} 16. Bd2 {[%clk 0:02:03.1]} 16... Bg6
{[%clk 0:01:31]} 17. Nh4 {[%clk 0:01:58.8]} 17... b4 {[%clk 0:01:22.1]} 18.
O-O-O {[%clk 0:01:52.9]} 18... a5 {[%clk 0:01:21.3]} 19. Nf5 {[%clk 0:01:53.7]}
19... a4 {[%clk 0:01:20.2]} 20. h4 {[%clk 0:01:51.3]} 20... b3 {[%clk
0:01:17.9]} 21. cxb3 {[%clk 0:01:49.3]} 21... axb3 {[%clk 0:01:15.1]} 22. a3
{[%clk 0:01:50.5]} 22... Qc8 {[%clk 0:00:50.9]} 23. Qf3 {[%clk 0:01:37.2]} 23...
Qa6 {[%clk 0:00:24.8]} 24. Bc3 {[%clk 0:01:14.7]} 24... c4 {[%clk 0:00:20.2]}
25. dxc4 {[%clk 0:01:15.6]} 25... Bxa3 {[%clk 0:00:20.6]} 26. bxa3 {[%clk
0:01:12.4]} 26... Qxa3+ {[%clk 0:00:20.4]} 27. Bb2 {[%clk 0:01:13.6]} 27... Qa4
{[%clk 0:00:21.2]} 28. Qc3 {[%clk 0:01:03]} 28... Bh5 {[%clk 0:00:20.4]} 29. Rd5
{[%clk 0:00:58.6]} 29... Qc6 {[%clk 0:00:15.8]} 30. Re1 {[%clk 0:00:47.4]} 30...
Bg6 {[%clk 0:00:12.8]} 31. Rxe5 {[%clk 0:00:39.7]} 31... Rxe5 {[%clk 0:00:13.2]}
32. Qxe5 {[%clk 0:00:41.6]} 32... Qxc4+ {[%clk 0:00:14.2]} 33. Qc3 {[%clk
0:00:43.2]} 33... Qxc3+ {[%clk 0:00:15]} 34. Bxc3 {[%clk 0:00:45.1]} 34... Re8
{[%clk 0:00:13.1]} 35. Nxg7 {[%clk 0:00:39.5]} 35... Rb8 {[%clk 0:00:09.1]} 36.
Nf5 {[%clk 0:00:39.8]} 36... Rb5 {[%clk 0:00:09.4]} 37. Ne7+ {[%clk 0:00:37.6]}
37... Kf8 {[%clk 0:00:09.4]} 38. Nd5 {[%clk 0:00:37.8]} 38... Rb8 {[%clk
0:00:06.1]} 39. Bb4+ {[%clk 0:00:35.1]} 39... Kg8 {[%clk 0:00:05.9]} 40. Nf6+
{[%clk 0:00:34.6]} 40... Kg7 {[%clk 0:00:06.3]} 41. Bc3 {[%clk 0:00:36]} 41...
Ra8 {[%clk 0:00:03.4]} 42. Kb2 {[%clk 0:00:31.3]} 42... Rh8 {[%clk 0:00:02.6]}
43. Nd7+ {[%clk 0:00:30.1]} 43... Kg8 {[%clk 0:00:02.6]} 44. Bxh8 {[%clk
0:00:31.5]} 44... Kxh8 {[%clk 0:00:04]} 45. Nf6 {[%clk 0:00:32.8]} 45... Kg7
{[%clk 0:00:02.8]} 46. h5 {[%clk 0:00:34]} 46... Kf8 {[%clk 0:00:02]} 47. hxg6
{[%clk 0:00:31.8]} 47... hxg6 {[%clk 0:00:02.2]} 48. Kxb3 {[%clk 0:00:32.3]} 1-0

[Event "*** MasterClass Titled Tuesday Blitz"]
[Site "Chess.com"]
[Date "2017.12.12"]
[Round "3"]
[White "GM-2023"]
[Black "sandager"]
[Result "1-0"]
[WhiteElo "2054"]
[BlackElo "1972"]
[TimeControl "180+2"]
[EndTime "13:36:05 PST"]
[Termination "GM-2023 won by checkmate"]

1. e4 {[%clk 0:03:01.9]} 1... e5 {[%clk 0:03:00.4]} 2. Nf3 {[%clk 0:03:02.5]}
2... Nc6 {[%clk 0:03:01.2]} 3. Bb5 {[%clk 0:03:02.7]} 3... a6 {[%clk 0:03:01]}
4. Ba4 {[%clk 0:03:03.4]} 4... Nf6 {[%clk 0:03:01.8]} 5. O-O {[%clk 0:03:04.2]}
5... Be7 {[%clk 0:03:02.6]} 6. d3 {[%clk 0:03:05.3]} 6... b5 {[%clk 0:03:03.2]}
7. Bb3 {[%clk 0:03:06.1]} 7... O-O {[%clk 0:03:04.5]} 8. a4 {[%clk 0:03:06.7]}
8... b4 {[%clk 0:03:04.3]} 9. Nbd2 {[%clk 0:03:01.7]} 9... d5 {[%clk 0:03:04.6]}
10. exd5 {[%clk 0:03:01.2]} 10... Nxd5 {[%clk 0:03:05.2]} 11. Nc4 {[%clk
0:02:52.6]} 11... Bf6 {[%clk 0:02:50.9]} 12. Re1 {[%clk 0:02:46.1]} 12... Re8
{[%clk 0:02:50.5]} 13. h3 {[%clk 0:02:35.9]} 13... Bf5 {[%clk 0:02:40.5]} 14. g4
{[%clk 0:02:18.5]} 14... Bc8 {[%clk 0:02:14.1]} 15. g5 {[%clk 0:02:19]} 15...
Be7 {[%clk 0:02:13.8]} 16. Ncxe5 {[%clk 0:02:19]} 16... Nxe5 {[%clk 0:02:06.2]}
17. Rxe5 {[%clk 0:02:01.9]} 17... c6 {[%clk 0:02:05.3]} 18. h4 {[%clk
0:01:27.6]} 18... Bg4 {[%clk 0:02:01.2]} 19. Qe2 {[%clk 0:01:09.6]} 19... Qd7
{[%clk 0:02:00.5]} 20. Re4 {[%clk 0:00:52.8]} 20... Bd6 {[%clk 0:01:58.4]} 21.
Bd2 {[%clk 0:00:44.6]} 21... Rxe4 {[%clk 0:00:55.9]} 22. dxe4 {[%clk 0:00:46.2]}
22... Re8 {[%clk 0:00:56.7]} 23. Qd3 {[%clk 0:00:38.8]} 23... Ne7 {[%clk
0:00:45.8]} 24. Rd1 {[%clk 0:00:05.6]} 24... Ng6 {[%clk 0:00:41.3]} 25. Be3
{[%clk 0:00:05]} 25... Bxf3 {[%clk 0:00:28.5]} 26. Qxd6 {[%clk 0:00:03.4]} 26...
Qxd6 {[%clk 0:00:29.4]} 27. Rxd6 {[%clk 0:00:03.5]} 27... Bxe4 {[%clk
0:00:30.7]} 28. Bd4 {[%clk 0:00:02.6]} 28... Nxh4 {[%clk 0:00:30.2]} 29. Be3
{[%clk 0:00:03.3]} 29... Nf3+ {[%clk 0:00:30.4]} 30. Kf1 {[%clk 0:00:03.8]}
30... Nh2+ {[%clk 0:00:26.3]} 31. Ke2 {[%clk 0:00:04.5]} 31... Ng4 {[%clk
0:00:27.6]} 32. Rd7 {[%clk 0:00:04.7]} 32... Ne5 {[%clk 0:00:26.8]} 33. Ra7
{[%clk 0:00:04.3]} 33... g6 {[%clk 0:00:22.2]} 34. f4 {[%clk 0:00:05]} 34... Ng4
{[%clk 0:00:20.5]} 35. Bxf7+ {[%clk 0:00:05.7]} 35... Kf8 {[%clk 0:00:12.4]} 36.
Bc5+ {[%clk 0:00:06.5]} 36... Kg7 {[%clk 0:00:12.5]} 37. Bxe8+ {[%clk
0:00:07.3]} 37... Kg8 {[%clk 0:00:13.9]} 38. Bf7+ {[%clk 0:00:07.7]} 38... Kh8
{[%clk 0:00:15.1]} 39. Bd4+ {[%clk 0:00:05.7]} 39... Nf6 {[%clk 0:00:12.7]} 40.
Bxf6# {[%clk 0:00:06.6]} 1-0

[Event "*** MasterClass Titled Tuesday Blitz"]
[Site "Chess.com"]
[Date "2017.12.12"]
[Round "3"]
[White "1stSecond"]
[Black "HarutyunianTigranK"]
[Result "0-1"]
[WhiteElo "2484"]
[BlackElo "2616"]
[TimeControl "180+2"]
[EndTime "13:36:25 PST"]
[Termination "HarutyunianTigranK won by checkmate"]

1. d4 {[%clk 0:03:01.9]} 1... Nf6 {[%clk 0:03:00.8]} 2. c4 {[%clk 0:02:58.9]}
2... e6 {[%clk 0:03:02.1]} 3. Nf3 {[%clk 0:03:00]} 3... d5 {[%clk 0:03:02.9]} 4.
g3 {[%clk 0:03:01.3]} 4... Be7 {[%clk 0:03:03.7]} 5. Bg2 {[%clk 0:03:02.2]} 5...
O-O {[%clk 0:03:05.1]} 6. O-O {[%clk 0:03:03.6]} 6... Nbd7 {[%clk 0:03:03]} 7.
Bf4 {[%clk 0:03:03.2]} 7... c5 {[%clk 0:02:47.6]} 8. Nc3 {[%clk 0:02:38]} 8...
dxc4 {[%clk 0:02:23.6]} 9. dxc5 {[%clk 0:02:02.6]} 9... Bxc5 {[%clk 0:02:23.5]}
10. Ne5 {[%clk 0:01:35.2]} 10... Nxe5 {[%clk 0:02:22]} 11. Bxe5 {[%clk
0:01:37.1]} 11... Ng4 {[%clk 0:02:20.6]} 12. Qxd8 {[%clk 0:00:46.8]} 12... Rxd8
{[%clk 0:02:22.5]} 13. Bc7 {[%clk 0:00:48.2]} 13... Rd7 {[%clk 0:02:22.4]} 14.
Ba5 {[%clk 0:00:32.6]} 14... Rb8 {[%clk 0:02:22.5]} 15. Ne4 {[%clk 0:00:33.1]}
15... Be7 {[%clk 0:02:19.5]} 16. Rad1 {[%clk 0:00:29.1]} 16... b6 {[%clk
0:02:15.8]} 17. Bc3 {[%clk 0:00:27.9]} 17... b5 {[%clk 0:02:04.5]} 18. h3 {[%clk
0:00:28.5]} 18... Nf6 {[%clk 0:02:04.3]} 19. Nxf6+ {[%clk 0:00:29.2]} 19... gxf6
{[%clk 0:02:04.7]} 20. Bc6 {[%clk 0:00:27.4]} 20... Rc7 {[%clk 0:02:03.3]} 21.
Bf3 {[%clk 0:00:22.1]} 21... b4 {[%clk 0:02:03.1]} 22. Bd2 {[%clk 0:00:21.7]}
22... Bb7 {[%clk 0:02:01.7]} 23. Bf4 {[%clk 0:00:20.4]} 23... e5 {[%clk
0:02:01.6]} 24. Bxb7 {[%clk 0:00:22]} 24... Rcxb7 {[%clk 0:01:52.8]} 25. Bh6
{[%clk 0:00:23.4]} 25... Rc7 {[%clk 0:01:48.5]} 26. Rc1 {[%clk 0:00:20]} 26...
Bf8 {[%clk 0:01:49.2]} 27. Be3 {[%clk 0:00:19.2]} 27... a5 {[%clk 0:01:48.4]}
28. Rc2 {[%clk 0:00:19.7]} 28... c3 {[%clk 0:01:34.5]} 29. Rfc1 {[%clk
0:00:18.1]} 29... Rbc8 {[%clk 0:01:12.6]} 30. bxc3 {[%clk 0:00:18.5]} 30... Rxc3
{[%clk 0:01:12.5]} 31. Rxc3 {[%clk 0:00:19.5]} 31... bxc3 {[%clk 0:01:09.9]} 32.
Rc2 {[%clk 0:00:15.2]} 32... Ba3 {[%clk 0:01:08.9]} 33. f4 {[%clk 0:00:10.3]}
33... Bb2 {[%clk 0:01:08.1]} 34. Kf2 {[%clk 0:00:11.6]} 34... Rc4 {[%clk
0:01:07.2]} 35. f5 {[%clk 0:00:11.2]} 35... Kg7 {[%clk 0:01:04.8]} 36. Kf3
{[%clk 0:00:09.4]} 36... Ra4 {[%clk 0:01:05.6]} 37. Bb6 {[%clk 0:00:09.5]} 37...
h5 {[%clk 0:01:05.4]} 38. Ke3 {[%clk 0:00:10.2]} 38... Rxa2 {[%clk 0:01:03.4]}
39. Kd3 {[%clk 0:00:11.6]} 39... Ra1 {[%clk 0:00:59.8]} 40. e4 {[%clk
0:00:12.3]} 40... a4 {[%clk 0:00:56.7]} 41. g4 {[%clk 0:00:09.9]} 41... h4
{[%clk 0:00:50]} 42. Rg2 {[%clk 0:00:08.8]} 42... a3 {[%clk 0:00:37.1]} 43. g5
{[%clk 0:00:09.7]} 43... Rd1+ {[%clk 0:00:24.1]} 44. Kc4 {[%clk 0:00:07]} 44...
fxg5 {[%clk 0:00:22.9]} 45. Rxg5+ {[%clk 0:00:06.1]} 45... Kf6 {[%clk
0:00:23.8]} 46. Rg8 {[%clk 0:00:05.3]} 46... c2 {[%clk 0:00:21.9]} 47. Bf2
{[%clk 0:00:04.3]} 47... c1=Q+ {[%clk 0:00:22.7]} 48. Kb3 {[%clk 0:00:05.6]}
48... Qc3+ {[%clk 0:00:22.8]} 49. Ka2 {[%clk 0:00:05.7]} 49... Qc4# {[%clk
0:00:23.7]} 0-1